bitfinex/quotes_ETHUSD_20250620
["timestamp","ask_amount","ask_price","bid_price","bid_amount"]
[1750439091378,0.0582,2485.7,2485.6,4.02308866]
[1750439091533,10.0,2485.6,2485.5,4.02325252]
[1750439091737,10.0,2485.6,2485.1,0.8299]
[1750439091738,10.0582,2485.6,2485.1,0.8299]
[1750439091973,10.0,2485.4,2485.3,4.02365911]
[1750439092545,10.0,2485.4,2484.8,4.08661096]
[1750439092750,10.0582,2485.2,2485.0,4.02399851]
[1750439092977,16.729,2485.1,2485.0,4.02401982]
[1750439094675,16.729,2485.1,2485.0,4.08631982]
[1750439094848,16.729,2485.1,2485.0,5.69097898]
[1750439095375,16.729,2485.1,2485.0,4.81761982]
[1750439095538,16.729,2485.1,2485.0,4.03414486]
[1750439096671,16.7872,2485.1,2485.0,4.03414486]
[1750439096867,16.7872,2485.1,2485.0,0.01]
[1750439097176,16.729,2485.1,2485.0,0.01]
[1750439097383,20.81118293,2485.1,2485.0,0.01]
[1750439097739,16.7872,2485.1,2485.0,0.01]
[1750439098362,21.01126988,2485.1,2485.0,0.01]
[1750439099081,21.79436988,2485.1,2485.0,0.01]
[1750439099288,68.20033681,2485.1,2485.0,0.01]
[1750439099446,68.57376636,2485.1,2485.0,0.01]
[1750439099646,68.57377518,2485.1,2485.0,0.01]
[1750439100545,76.41377518,2485.1,2485.0,0.01]
[1750439101342,76.41385808,2485.1,2485.0,0.01]
[1750439101675,76.04033681,2485.1,2485.0,0.01]
[1750439101877,76.7878838,2485.1,2485.0,0.01]
[1750439102185,76.41403555,2485.1,2485.0,0.01]
[1750439102342,49.62878176,2485.1,2485.0,0.01]
[1750439102543,57.48279607,2485.1,2485.0,4.03414486]
[1750439102848,27.54099607,2485.1,2485.0,0.01]
[1750439103074,27.1673,2485.1,2485.0,0.01]
[1750439103404,27.5411005,2485.1,2485.0,0.01]
[1750439104109,27.1673,2485.1,2485.0,0.01]
[1750439104312,75.55608533,2485.1,2485.0,0.01]
[1750439104495,75.55604132,2485.1,2485.0,0.01]
[1750439104805,77.97103882,2485.1,2485.0,0.01]
[1750439105009,78.3448531,2485.1,2485.0,0.01]
[1750439105206,78.34493793,2485.1,2485.0,0.01]
[1750439105518,78.5701272,2485.1,2485.0,0.01]
[1750439106011,78.57056298,2485.1,2485.0,0.01]
[1750439106370,0.0582,2484.7,2484.6,4.02478833]
[1750439106610,16.729,2484.7,2484.6,4.02478833]
[1750439106910,10.0,2484.6,2484.5,4.02489031]
[1750439107144,11.757,2484.6,2484.1,4.78313843]
[1750439107407,0.8178,2484.4,2484.1,4.02553982]
[1750439107609,40.0582,2484.2,2483.4,0.0623]
[1750439107770,40.0582,2484.2,2483.8,4.02600117]
[1750439107771,8.486,2484.1,2483.8,4.02600117]
[1750439107970,10.7596,2484.0,2483.4,0.0623]
[1750439108214,10.7596,2484.0,2483.7,4.02623647]
[1750439108215,10.0,2483.8,2483.7,4.02623647]
[1750439110626,10.0,2483.8,2483.2,0.7591]
[1750439110627,10.0603,2483.6,2483.2,0.7591]
[1750439110825,8.487,2483.5,2483.2,4.02695948]
[1750439111000,10.0,2483.2,2482.7,0.8057]
[1750439111188,10.0,2483.4,2482.8,0.0604]
[1750439111387,0.41111172,2483.9,2482.8,0.0604]
[1750439111388,0.37386626,2483.3,2483.2,4.08746185]
[1750439111617,16.729,2483.3,2483.2,4.08746185]
[1750439111811,16.729,2483.3,2483.2,4.02706185]
[1750439112120,6.729,2483.3,2483.1,4.02709474]
[1750439112285,6.729,2483.3,2483.1,4.02711111]
[1750439112887,6.729,2483.3,2483.0,4.02731618]
[1750439113088,10.75598737,2483.3,2482.8,4.0276022]
[1750439113300,0.0603,2483.1,2482.5,0.8661]
[1750439113501,10.0,2482.9,2481.8,0.8661]
[1750439113699,23.29716693,2483.0,2482.5,4.83387856]
[1750439113700,16.729,2482.8,2482.5,4.83387856]
[1750439113905,16.729,2482.7,2482.6,4.02794741]
[1750439114489,16.729,2482.7,2482.5,4.83382239]
[1750439115202,16.729,2482.7,2482.6,4.02803512]
[1750439116191,16.729,2482.7,2482.5,4.83382565]
[1750439116390,16.729,2482.7,2482.6,4.02803512]
[1750439116819,16.729,2482.7,2482.4,0.0604]
[1750439117138,16.729,2482.7,2482.3,4.84348152]
[1750439117324,16.729,2482.7,2482.5,4.02811813]
[1750439117494,16.729,2482.7,2482.6,4.02803512]
[1750439117695,16.729,2482.7,2482.6,4.08843512]
[1750439117996,16.729,2482.7,2482.6,4.02803512]
[1750439118216,16.729,2482.7,2482.6,0.001]
[1750439118217,6.73,2482.7,2482.6,0.001]
[1750439119095,16.73,2482.7,2482.6,0.001]
[1750439120207,10.0,2482.7,2482.6,4.02903512]
[1750439120547,22.57717288,2482.7,2482.6,0.001]
[1750439120698,18.5493,2482.7,2482.6,0.001]
[1750439121097,10.0,2482.4,2481.8,0.0604]
[1750439121404,10.0,2482.2,2482.1,4.02884205]
[1750439121600,6.731,2482.2,2482.1,0.0604]
[1750439121833,6.731,2482.2,2482.1,4.08924654]
[1750439122643,10.0,2482.2,2482.1,4.97637206]
[1750439122843,3.37139373,2483.1,2483.0,4.02738622]
[1750439123043,10.49768611,2483.1,2483.0,4.08778622]
[1750439123346,8.73868611,2483.1,2483.0,4.08778622]
[1750439123551,1.61239373,2483.1,2483.0,4.08778622]
[1750439123753,1.759,2483.3,2483.2,4.02706185]
[1750439123943,8.491,2483.3,2483.2,4.08746185]
[1750439124123,18.491,2483.3,2483.2,4.08746185]
[1750439124323,11.3049,2484.0,2483.6,4.02631074]
[1750439124551,30.0,2483.8,2483.3,4.02683381]
[1750439124737,1.759,2483.9,2483.3,0.0604]
[1750439124946,1.759,2483.9,2483.7,4.02625115]
[1750439124947,46.732,2483.8,2483.7,4.02625115]
[1750439125259,10.0,2483.7,2483.6,4.02630033]
[1750439125416,8.491,2483.8,2483.6,4.02630033]
[1750439125616,8.491,2483.8,2483.7,4.02625115]
[1750439126256,8.491,2483.8,2483.6,4.02633402]
[1750439126748,10.0,2483.7,2483.6,4.02633402]
[1750439127161,10.0,2483.7,2483.5,4.02650573]
[1750439127332,16.731,2483.6,2483.5,4.02650573]
[1750439130956,20.75742333,2483.6,2483.2,4.02698928]
[1750439131166,20.75742333,2483.6,2482.8,4.02768828]
[1750439131167,0.0603,2483.4,2482.8,4.02768828]
[1750439131365,0.0603,2483.2,2482.5,0.0604]
[1750439131658,10.0,2483.0,2482.9,4.02754843]
[1750439133349,10.0,2483.0,2482.8,4.02760051]
[1750439133571,16.73,2482.9,2482.8,4.02771064]
[1750439134288,16.73,2482.9,2482.5,0.8247]
[1750439134289,10.0,2482.8,2482.5,0.8247]
[1750439134497,16.73,2482.7,2482.6,4.08843512]
[1750439135670,10.0,2482.7,2482.6,4.08843512]
[1750439135846,16.73,2482.7,2482.6,4.08843512]
[1750439137800,16.73,2482.7,2482.6,4.09811512]
[1750439139513,16.7912,2482.7,2482.6,4.09811512]
[1750439140177,16.7912,2482.7,2482.6,0.07008]
[1750439140178,17.19434032,2482.7,2482.6,0.07008]
[1750439142074,17.56954418,2482.7,2482.6,4.09811512]
[1750439142612,19.26334418,2482.7,2482.6,4.09811512]
[1750439142769,18.88814032,2482.7,2482.6,4.09811512]
[1750439142969,18.94934032,2482.7,2482.6,0.07008]
[1750439143418,18.88814032,2482.7,2482.6,4.09811512]
[1750439148538,36.96818013,2482.7,2482.6,0.07008]
[1750439148680,32.94030725,2482.7,2482.6,0.07008]
[1750439149023,32.94030725,2482.7,2482.6,4.09811512]
[1750439149024,18.88814032,2482.7,2482.6,4.09811512]
[1750439150722,10.40314032,2482.7,2482.6,4.09811512]
[1750439151033,0.0612,2483.3,2483.0,4.02732107]
[1750439151187,16.729,2483.2,2482.8,4.02764731]
[1750439151388,10.0,2483.0,2482.8,4.02760017]
[1750439151704,16.729,2482.9,2482.8,4.02760017]
[1750439152218,10.0,2482.9,2482.8,4.02760017]
[1750439152535,16.729,2482.9,2482.8,4.02760017]
[1750439152882,10.0,2482.8,2482.6,4.09809528]
[1750439153086,6.729,2482.7,2482.6,0.07008]
[1750439153325,6.7902,2482.7,2482.6,0.07008]
[1750439154401,6.7902,2482.7,2482.6,4.09811512]
[1750439154614,6.729,2482.7,2482.6,4.09811512]
[1750439154922,0.8115,2482.9,2482.7,4.02787288]
[1750439155125,6.728,2482.8,2482.7,4.02787288]
[1750439155325,16.728,2482.8,2482.7,4.02787288]
[1750439156126,16.728,2482.8,2482.7,4.89547288]
[1750439156324,16.728,2482.8,2482.7,5.79482958]
[1750439157403,16.728,2482.8,2482.7,4.89547288]
[1750439158524,16.728,2482.8,2482.7,4.83847288]
[1750439158683,16.728,2482.8,2482.7,4.02787288]
[1750439160108,17.10450809,2482.8,2482.7,4.02787288]
[1750439160500,7.10450809,2482.8,2482.6,4.09803582]
[1750439160708,0.37650809,2482.7,2482.6,4.09803582]
[1750439160906,6.728,2482.8,2482.7,4.02787288]
[1750439161235,7.48145453,2482.8,2482.6,0.07008]
[1750439161440,25.80546726,2482.7,2482.6,0.07008]
[1750439161634,25.80529269,2482.7,2482.6,0.07008]
[1750439162126,11.81400286,2482.7,2482.6,0.07008]
[1750439162721,15.84189557,2482.7,2482.6,0.07008]
[1750439162919,11.81402269,2482.7,2482.6,0.07008]
[1750439163116,11.81410359,2482.7,2482.6,0.07008]
[1750439163328,11.8141465,2482.7,2482.6,0.07008]
[1750439163533,15.84202245,2482.7,2482.6,0.07008]
[1750439163746,32.24798938,2482.7,2482.6,0.07008]
[1750439163918,62.24798938,2482.7,2482.6,0.07008]
[1750439164121,62.24798768,2482.7,2482.6,0.07008]
[1750439164320,0.0612,2482.4,2481.8,4.02917884]
[1750439164519,10.0,2482.1,2481.9,4.02908333]
[1750439164831,10.0,2481.9,2481.5,4.02966804]
[1750439165169,10.0,2481.9,2480.7,4.03110624]
[1750439165170,10.0,2481.7,2481.6,4.02965828]
[1750439165369,10.37623382,2481.7,2481.1,0.7554]
[1750439165657,17.10423382,2481.6,2481.5,4.08682067]
[1750439165860,10.0,2481.6,2481.5,4.08682067]
[1750439166214,16.728,2481.6,2481.5,4.08682067]
[1750439166614,16.728,2481.6,2481.5,4.02982067]
[1750439167460,16.728,2481.6,2481.4,4.02998307]
[1750439167461,10.0,2481.5,2481.4,4.02998307]
[1750439167666,0.43686678,2481.5,2480.9,0.057]
[1750439167973,10.0,2481.2,2480.9,4.03071095]
[1750439168267,19.2955007,2481.1,2480.9,4.03070777]
[1750439168414,19.3213,2481.1,2480.8,4.03090727]
[1750439168618,10.0563,2481.0,2480.7,4.03110626]
[1750439168807,6.728,2480.9,2480.5,0.7872]
[1750439169022,6.728,2480.9,2480.4,0.0574]
[1750439169023,10.0,2480.8,2480.4,0.0574]
[1750439169213,10.0,2480.6,2480.4,4.0316078]
[1750439169529,11.755,2480.9,2480.8,4.03095775]
[1750439169726,12.50463384,2480.9,2480.8,4.03095775]
[1750439169909,18.91411692,2480.9,2480.7,4.0310358]
[1750439170111,8.5393,2480.9,2480.8,4.03095775]
[1750439170359,10.0563,2480.8,2480.5,4.03132322]
[1750439170661,16.728,2480.7,2480.5,4.03138875]
[1750439170869,10.7667,2480.6,2480.5,4.03144527]
[1750439171014,6.73,2480.6,2480.5,4.03144527]
[1750439171217,6.73,2480.6,2480.3,0.2200711]
[1750439171522,0.7633,2480.4,2480.3,0.2200711]
[1750439171723,17.4933,2480.4,2480.3,4.25184145]
[1750439171913,16.73,2480.4,2480.3,4.25184145]
[1750439172810,16.73,2480.4,2480.3,0.2200711]
[1750439173151,16.7863,2480.4,2480.3,0.2200711]
[1750439173346,10.0,2480.4,2480.3,4.25184145]
[1750439173551,30.0,2481.0,2480.4,0.0574]
[1750439173752,6.733,2480.9,2480.7,4.03104652]
[1750439174068,16.746,2480.8,2480.7,4.03104652]
[1750439174420,16.746,2480.8,2480.3,0.9961711]
[1750439174421,40.0,2480.7,2480.3,0.9961711]
[1750439174643,10.0563,2480.7,2480.5,4.03136191]
[1750439174825,10.0,2480.6,2480.5,4.03136191]
[1750439175026,10.0,2480.6,2480.5,4.91706111]
[1750439175257,16.76,2480.6,2480.5,5.69736111]
[1750439176366,16.76,2480.6,2480.5,4.86906191]
[1750439176873,2.15311132,2481.1,2481.0,4.0306328]
[1750439177170,18.516,2481.1,2481.0,4.0306328]
[1750439177314,10.0,2481.1,2481.0,4.0306328]
[1750439177512,18.517,2481.1,2481.0,4.0306328]
[1750439177962,18.517,2481.1,2481.0,4.0880328]
[1750439178164,10.0,2481.1,2481.0,4.0880328]
[1750439178470,16.761,2481.1,2481.0,4.0880328]
[1750439178699,16.761,2481.1,2481.0,4.0306328]
[1750439179189,16.761,2481.1,2480.9,4.03071799]
[1750439179352,16.761,2481.1,2480.8,4.03079713]
[1750439179753,16.761,2481.1,2481.0,4.0306328]
[1750439180593,16.8173,2481.1,2480.8,4.03080718]
[1750439181094,16.8173,2481.1,2481.0,4.0306328]
[1750439182999,16.8173,2481.1,2480.5,4.81168551]
[1750439183160,16.8173,2481.1,2481.0,4.0306328]
[1750439183598,16.8173,2481.1,2480.9,4.0306418]
[1750439183900,16.8173,2481.1,2480.9,4.0307937]
[1750439184083,16.8173,2481.1,2481.0,4.0306328]
[1750439184277,16.8173,2481.1,2480.9,4.03077897]
[1750439184490,16.8173,2481.1,2481.0,4.0306328]
[1750439184658,10.0,2481.1,2481.0,4.0306328]
[1750439184858,16.757,2481.1,2481.0,4.0306328]
[1750439185593,10.0,2481.0,2480.8,4.03080893]
[1750439185891,10.0,2481.0,2480.3,1.0818711]
[1750439185892,0.0563,2480.7,2480.3,4.25174818]
[1750439186103,8.512,2480.6,2480.3,4.25176482]
[1750439186454,10.0,2480.5,2480.3,0.2200711]
[1750439186695,16.759,2480.4,2480.3,0.2200711]
[1750439186897,11.756,2480.4,2480.3,4.25184145]
[1750439187095,18.523,2480.4,2480.3,4.25184145]
[1750439187297,18.523,2480.4,2480.3,4.30924145]
[1750439187808,0.0563,2480.9,2480.5,4.03143928]
[1750439188095,11.756,2480.7,2480.6,4.03115479]
[1750439188406,11.756,2480.7,2480.4,4.03150019]
[1750439188706,10.0,2480.5,2480.4,4.03150019]
[1750439189696,6.766,2480.6,2480.5,4.03144527]
[1750439190772,16.766,2480.6,2480.5,4.03144527]
[1750439191772,10.0,2480.5,2480.4,4.03151749]
[1750439191972,16.766,2480.6,2480.3,0.2200711]
[1750439192206,10.0,2480.5,2480.4,4.03160357]
[1750439192355,10.0,2480.5,2480.4,4.0316078]
[1750439193076,0.0563,2480.1,2479.3,0.8273]
[1750439193298,10.0,2479.9,2479.6,4.03283153]
[1750439193462,10.0,2479.7,2479.5,4.03299998]
[1750439193796,6.45199596,2480.2,2479.5,4.03299998]
[1750439193797,10.0,2479.6,2479.5,4.09042128]
[1750439194361,16.774,2479.6,2479.5,4.98551351]
[1750439194698,16.774,2479.6,2479.5,5.81281351]
[1750439195060,16.774,2479.6,2479.5,4.86032128]
[1750439195261,16.774,2479.6,2479.5,4.09042128]
[1750439196294,6.774,2479.6,2479.5,4.09042128]
[1750439196496,0.7559,2480.3,2480.1,4.03209548]
[1750439196663,10.0,2480.1,2480.0,4.08962443]
[1750439196863,6.798,2480.2,2480.0,4.08962443]
[1750439196864,1.771,2480.4,2480.2,4.03184356]
[1750439197107,6.801,2480.3,2480.2,4.03184356]
[1750439197438,0.39946892,2480.4,2480.3,4.03177035]
[1750439197603,6.803,2480.4,2480.3,4.03168583]
[1750439197803,16.803,2480.4,2480.3,4.03168583]
[1750439198564,16.803,2480.4,2480.3,4.09038583]
[1750439199407,16.8,2480.4,2480.3,4.09038583]
[1750439200110,16.8,2480.4,2480.3,4.03168583]
[1750439200307,16.8,2480.4,2479.5,0.55]
[1750439200308,10.0619,2480.3,2479.4,4.79693384]
[1750439200466,10.0,2480.1,2479.9,4.03233478]
[1750439200669,8.566,2480.2,2479.9,4.03233478]
[1750439200670,16.844,2480.0,2479.9,4.03233478]
[1750439200892,10.0,2479.9,2479.8,4.03250746]
[1750439201093,6.844,2480.0,2479.6,0.0587]
[1750439201306,34.0326713,2479.8,2479.2,0.7637]
[1750439201507,18.6799,2479.7,2479.2,4.74717488]
[1750439201785,18.6799,2479.7,2479.2,4.03347488]
[1750439201984,18.6799,2479.7,2479.3,4.03331041]
[1750439202607,0.7480742,2479.6,2479.3,4.03331041]
[1750439202807,0.7480742,2479.5,2479.3,4.03331041]
[1750439203011,7.22503707,2479.4,2479.3,4.03331041]
[1750439203320,7.599187,2479.4,2479.3,4.03331041]
[1750439204284,7.599187,2479.4,2479.3,4.03339652]
[1750439204481,7.2250935,2479.4,2479.3,4.03339652]
[1750439205217,7.2250935,2479.4,2479.3,4.09209652]
[1750439205821,6.851,2479.4,2479.3,4.09209652]
[1750439206018,7.22489165,2479.4,2479.3,4.09209652]
[1750439206910,0.37389165,2479.4,2479.3,5.79367873]
[1750439207107,0.37389165,2479.4,2479.3,5.83400708]
[1750439207310,10.0,2479.6,2479.5,4.03307118]
[1750439207530,10.748,2479.6,2479.5,4.03307118]
[1750439208021,10.748,2479.6,2479.5,3.68307118]
[1750439208734,10.0,2479.6,2479.5,3.68307118]
[1750439208886,10.74834372,2479.6,2479.5,3.68307118]
[1750439209090,10.74852502,2479.6,2479.5,3.68307118]
[1750439210326,10.74854973,2479.6,2479.5,3.68307118]
[1750439211282,10.74854973,2479.6,2479.2,0.0587]
[1750439211489,11.771,2479.8,2479.6,4.03289367]
[1750439211739,10.0,2479.6,2479.5,4.03298437]
[1750439212037,10.74890936,2479.6,2479.5,4.03298437]
[1750439212198,10.37445461,2479.6,2479.5,4.03298437]
[1750439212398,10.74888606,2479.6,2479.4,4.03313977]
[1750439212613,17.58588606,2479.5,2479.4,4.03313977]
[1750439212828,17.58597938,2479.5,2479.3,4.03330712]
[1750439213143,0.7490751,2479.4,2479.3,4.03330712]
[1750439213428,0.74905925,2479.4,2479.3,4.03330712]
[1750439214220,6.837,2479.5,2479.3,4.03330712]
[1750439214421,0.74908288,2479.4,2479.3,4.03330712]
[1750439215046,7.20754144,2479.4,2479.3,4.03330712]
[1750439215394,0.37454144,2479.4,2479.3,4.03330712]
[1750439215628,0.37454144,2479.4,2479.3,5.01823436]
[1750439215830,7.20754144,2479.4,2479.3,5.01823436]
[1750439216031,7.20754144,2479.4,2479.3,4.97790298]
[1750439216445,7.20754144,2479.4,2479.3,5.56823165]
[1750439216744,7.20754144,2479.4,2479.3,6.36623165]
[1750439216948,10.0,2479.9,2479.3,6.36623165]
[1750439216949,10.0,2479.9,2479.8,4.03258327]
[1750439217153,7.58081986,2479.9,2479.8,4.03258327]
[1750439218416,7.58081986,2479.9,2479.7,4.03268313]
[1750439218748,6.831,2479.9,2479.8,4.03258327]
[1750439218908,7.58093306,2479.9,2479.7,4.03266159]
[1750439219108,0.74993321,2479.8,2479.7,4.03266159]
[1750439219311,10.74993321,2479.8,2479.7,4.03266159]
[1750439219722,10.7499705,2479.8,2479.7,4.03266159]
[1750439219944,10.7499705,2479.8,2479.6,4.03282023]
[1750439220132,0.7499705,2479.7,2479.6,4.03290853]
[1750439220355,0.7499705,2479.7,2479.3,4.03324322]
[1750439220356,1.56209344,2479.7,2479.3,4.03324322]
[1750439220555,10.0619,2479.5,2479.4,4.03315851]
[1750439220853,10.43702939,2479.5,2479.4,4.03315851]
[1750439221149,13.30064561,2479.5,2479.3,4.03324922]
[1750439221358,12.5504,2479.5,2479.4,4.03323384]
[1750439221651,0.75093742,2479.5,2479.4,4.03323384]
[1750439221955,9.37493742,2479.5,2479.4,4.03323384]
[1750439222130,8.99947559,2479.5,2479.4,4.03323384]
[1750439222328,9.37509955,2479.5,2479.4,4.03323384]
[1750439222758,0.75144801,2479.5,2479.4,4.03323384]
[1750439222964,7.57744801,2479.5,2479.4,4.03323384]
[1750439223170,34.86287178,2479.2,2478.2,0.8287]
[1750439223316,13.99096693,2478.7,2477.9,0.7675]
[1750439223521,13.2682,2478.9,2477.8,0.2200711]
[1750439223522,13.99096693,2478.2,2477.8,0.2200711]
[1750439223720,0.20539376,2478.8,2478.7,4.03437285]
[1750439223721,0.8482,2478.8,2478.7,4.03437285]
[1750439223924,0.75103941,2478.8,2478.7,4.03437285]
[1750439224134,7.25051909,2478.8,2478.7,5.01705501]
[1750439224366,7.62580358,2478.8,2478.7,4.03437285]
[1750439224673,7.62579213,2478.8,2478.7,4.03437285]
[1750439224852,7.62779213,2478.8,2478.7,4.03437285]
[1750439225053,0.75079213,2478.8,2478.7,4.03437285]
[1750439225279,7.62638656,2478.8,2478.7,4.03437285]
[1750439225775,7.62538656,2478.8,2478.7,4.03437285]
[1750439225923,7.25019816,2478.8,2478.7,4.03437285]
[1750439226129,7.62540326,2478.8,2478.7,4.03437285]
[1750439226350,7.2502051,2478.8,2478.7,4.03437285]
[1750439226659,6.874,2478.8,2478.7,4.09307285]
[1750439226825,6.874,2478.8,2478.7,4.89996116]
[1750439227027,16.874,2478.8,2478.7,4.89996116]
[1750439227572,1.797,2479.0,2478.7,4.89996116]
[1750439227573,1.797,2479.2,2479.1,4.03359492]
[1750439227724,19.41794912,2479.2,2479.1,4.03359492]
[1750439228246,19.41819186,2479.2,2479.1,4.03359492]
[1750439228452,19.82276876,2479.2,2479.1,4.03359492]
[1750439229171,19.82316276,2479.2,2479.1,4.03359492]
[1750439229476,19.82316276,2479.2,2479.0,4.03381342]
[1750439229662,0.75119439,2479.1,2479.0,4.03381342]
[1750439229976,7.62025685,2479.1,2479.0,4.03381342]
[1750439230162,10.4045769,2479.2,2479.1,4.03372191]
[1750439230359,19.81679568,2479.2,2479.1,4.03372191]
[1750439230564,19.87329568,2479.2,2478.9,4.03389687]
[1750439230768,0.80871878,2479.1,2478.9,4.03389687]
[1750439230964,17.61221878,2479.0,2478.9,4.03389687]
[1750439231126,17.66871878,2479.0,2478.9,4.03389687]
[1750439231334,17.66864566,2479.0,2478.9,4.03389687]
[1750439231572,17.61114566,2479.0,2478.9,4.03389687]
[1750439231767,10.75214566,2479.0,2478.9,4.03389687]
[1750439232081,17.61514566,2479.0,2478.9,4.03389687]
[1750439232262,17.23910907,2479.0,2478.9,4.03389687]
[1750439233176,16.863,2479.0,2478.9,4.03389687]
[1750439233890,10.0,2479.0,2478.9,4.09449687]
[1750439234047,16.863,2479.0,2478.9,4.09449687]
[1750439234246,10.37606419,2479.0,2478.9,4.09449687]
[1750439234647,17.23106419,2479.0,2478.9,4.09449687]
[1750439235014,10.0,2479.0,2478.9,4.98920541]
[1750439235185,16.855,2479.0,2478.9,4.09449687]
[1750439236096,16.855,2479.0,2478.9,4.64449687]
[1750439236301,10.494,2479.4,2479.3,4.03339652]
[1750439236446,0.37632241,2479.4,2479.3,4.03339652]
[1750439236648,0.37632241,2479.6,2479.5,4.03307118]
[1750439236964,7.23037302,2479.6,2479.5,4.03307118]
[1750439237290,16.854,2479.6,2479.5,4.03307118]
[1750439237589,7.23039344,2479.6,2479.5,4.03307118]
[1750439237771,0.37639344,2479.6,2479.5,4.03307118]
[1750439238177,6.851,2479.6,2479.5,5.73752567]
[1750439238709,1.797,2480.2,2480.1,4.03209548]
[1750439238905,9.40104886,2480.2,2480.1,4.03209548]
[1750439239062,17.60504886,2480.2,2480.1,4.03209548]
[1750439239372,7.22752432,2480.2,2480.1,4.09269548]
[1750439239773,1.797,2480.7,2480.1,5.57519492]
[1750439239982,30.0,2480.8,2480.7,4.03112024]
[1750439240198,0.97824779,2480.8,2480.7,4.03112024]
[1750439240407,17.61150032,2480.8,2480.7,4.03112024]
[1750439240562,7.60886901,2480.8,2480.7,4.03112024]
[1750439240762,0.75186901,2480.8,2480.7,4.03112024]
[1750439240958,0.75186901,2480.8,2480.7,4.09172024]
[1750439240959,0.37561885,2480.8,2480.7,4.09172024]
[1750439241160,10.0565,2481.2,2481.0,4.0306328]
[1750439241161,10.0,2481.1,2481.0,4.0306328]
[1750439241399,7.6092895,2481.1,2481.0,4.0306328]
[1750439241613,17.6092895,2481.1,2481.0,4.0306328]
[1750439241763,0.37564505,2481.1,2481.0,4.0306328]
[1750439241966,10.5525,2481.4,2481.0,4.0306328]
[1750439241967,0.375613,2481.2,2481.0,4.0912328]
[1750439242167,0.375613,2481.1,2481.0,4.0912328]
[1750439242528,2.5983,2481.6,2481.5,4.02982067]
[1750439242813,20.26165137,2481.6,2481.5,4.02982067]
[1750439242997,10.26165137,2481.6,2481.5,4.02982067]
[1750439243368,10.26165137,2481.6,2481.4,4.02989611]
[1750439243569,10.26165137,2481.6,2481.3,4.03002939]
[1750439243570,0.37492749,2481.5,2481.3,4.03002939]
[1750439243766,10.0,2481.3,2481.2,4.03023544]
[1750439243999,0.0565,2481.3,2481.2,4.03023544]
[1750439244180,6.853,2481.4,2481.3,4.03014548]
[1750439244695,6.853,2481.4,2480.5,0.8575]
[1750439244696,30.0,2481.2,2480.5,0.8575]
[1750439245023,6.9085,2481.1,2480.9,4.0307536]
[1750439245369,7.3068318,2481.1,2480.9,4.0307536]
[1750439245590,10.0,2481.5,2480.9,4.0307536]
[1750439245789,0.37425556,2481.4,2481.2,4.03030791]
[1750439246083,10.0,2481.3,2481.2,4.03019763]
[1750439246289,10.0,2481.1,2480.7,4.0916934]
[1750439246494,30.0565,2481.2,2481.1,4.03047035]
[1750439246686,6.9115,2481.2,2481.1,4.03047035]
[1750439246883,10.0,2481.1,2481.0,4.03055648]
[1750439247082,0.40034847,2481.3,2481.2,4.03030791]
[1750439247409,16.854,2481.3,2481.2,4.03030791]
[1750439247793,16.852,2481.3,2481.2,4.03030791]
[1750439248123,10.0,2481.3,2481.2,4.09090791]
[1750439248312,16.853,2481.3,2481.2,4.03030791]
[1750439249730,16.852,2481.3,2481.2,4.03030791]
[1750439250330,10.0,2481.3,2481.2,4.03030791]
[1750439250491,16.848,2481.3,2481.2,4.03030791]
[1750439251105,10.0,2481.3,2481.2,4.09090791]
[1750439251303,16.843,2481.3,2481.2,4.09090791]
[1750439251706,16.842,2481.3,2481.2,4.09090791]
[1750439251915,10.0,2481.3,2481.2,4.09090791]
[1750439252404,10.0,2481.3,2481.2,4.97882244]
[1750439252731,16.839,2481.3,2481.2,5.52882244]
[1750439253030,16.839,2481.3,2481.2,4.03030791]
[1750439253234,16.839,2481.3,2481.1,4.03040505]
[1750439253235,10.0,2481.2,2481.1,4.03040505]
[1750439255562,10.0,2481.2,2481.1,4.03047035]
[1750439255761,10.0,2481.2,2480.8,0.8005]
[1750439255962,10.0,2481.0,2480.9,4.03063531]
[1750439256657,10.0,2481.0,2480.9,4.09123531]
[1750439257627,10.0,2481.0,2480.9,4.03063531]
[1750439259064,0.7599,2481.5,2481.4,4.02998307]
[1750439259265,10.0,2481.4,2481.2,4.03029047]
[1750439259434,10.0,2481.2,2481.1,4.03038907]
[1750439260164,10.0,2481.2,2481.1,4.03047035]
[1750439260729,10.0,2481.2,2480.8,4.03095704]
[1750439260730,10.057,2481.2,2480.8,4.03095704]
[1750439260931,10.057,2481.0,2480.5,0.8151]
[1750439261129,16.829,2480.9,2480.8,4.03083]
[1750439262773,16.829,2480.9,2480.7,4.031002]
[1750439262774,10.0,2480.8,2480.7,4.031002]
[1750439262980,6.829,2480.9,2480.5,0.7568]
[1750439263139,10.0,2480.5,2479.7,0.7719]
[1750439263347,10.0,2480.2,2480.1,4.03209548]
[1750439263541,16.835,2480.2,2480.1,4.03209548]
[1750439264142,10.7585,2480.6,2480.5,4.03144527]
[1750439264475,16.833,2480.6,2480.5,4.03144527]
[1750439264677,10.0,2480.6,2480.5,4.08974527]
[1750439264877,16.834,2480.6,2480.5,4.08974527]
[1750439265080,16.834,2480.6,2480.5,4.63974527]
[1750439265267,16.836,2480.6,2480.5,6.27878029]
[1750439265581,0.057,2481.5,2481.2,4.03024169]
[1750439265582,1.807,2481.3,2481.2,4.03024169]
[1750439265742,19.39294093,2481.3,2481.2,4.03024169]
[1750439266144,12.55802605,2481.3,2481.2,4.03024169]
[1750439266440,9.39502605,2481.3,2481.2,4.03024169]
[1750439267147,9.39558582,2481.3,2481.2,4.03024169]
[1750439267348,7.58858582,2481.3,2481.2,4.03024169]
[1750439267604,7.58558582,2481.3,2481.2,4.03024169]
[1750439267959,17.58558582,2481.3,2481.2,4.03024169]
[1750439268559,17.20947014,2481.3,2481.2,4.03024169]
[1750439268762,17.58637505,2481.3,2481.2,4.03024169]
[1750439269375,10.75237505,2481.3,2481.2,4.08854169]
[1750439269579,17.60137505,2481.3,2481.2,5.52763087]